fUSD/lending_fUSD_20241227
["ID","MTS","AMOUNT","RATE_DAILY","PERIOD"]
[346774649,1735277416952,1854.92,0.00012899,2]
[346774650,1735277417205,1854.97067444,0.00012899,2]
[346774651,1735277417874,809.27,0.00011973,2]
[346774652,1735277418166,809.27,0.00012247,2]
[346774653,1735277418418,809.27,0.00012521,2]
[346774654,1735277418703,809.27,0.00012795,2]
[346774655,1735277418895,150.0,0.0001223,2]
[346774656,1735277420589,1833.94919,0.00013,2]
[346774657,1735277423193,500.0,0.00011973,2]
[346774658,1735277423442,299.12135943,0.00012247,2]
[346774659,1735277423496,3889.0,0.0001223,2]
[346774660,1735277424098,648.16,0.00011973,2]
[346774661,1735277424353,648.16,0.00012247,2]
[346774662,1735277424605,648.16,0.00012521,2]
[346774663,1735277425003,648.16,0.00012795,2]
[346774664,1735277428176,6899.13,0.00011974,2]
[346774665,1735277429473,6899.13,0.00012248,2]
[346774666,1735277429521,2964.93,0.00011975,2]
[346774667,1735277429961,6899.13,0.00012522,2]
[346774668,1735277430118,1642.8,0.00011973,2]
[346774669,1735277430174,2964.93,0.00012249,2]
[346774670,1735277430390,1642.8,0.00012247,2]
[346774671,1735277430732,1642.8,0.00012521,2]
[346774672,1735277430999,1642.8,0.00012795,2]
[346774673,1735277431053,2964.93,0.00012523,2]
[346774674,1735277431105,6899.13,0.00012796,2]
[346774675,1735277431152,2012.0,0.00012251,2]
[346774679,1735277431631,2964.93,0.00012797,2]
[346774698,1735277432122,-150.03,0.00013006,2]
[346774699,1735277432133,-150.54,0.00013006,2]
[346774700,1735277432143,-152.01,0.00013006,2]
[346774701,1735277432152,-152.54,0.00013006,2]
[346774702,1735277432161,-43.5050025,0.00013006,2]
[346774703,1735277432173,-108.4049975,0.00013006,2]
[346774704,1735277432183,-150.56,0.00013006,2]
[346774705,1735277432192,-152.63,0.00013006,2]
[346774706,1735277432202,-150.03,0.00013006,2]
[346774707,1735277432211,-151.03,0.00013006,2]
[346774708,1735277432220,-151.25,0.00013006,2]
[346774710,1735277432230,-142.4550025,0.00013006,2]
[346774713,1735277432246,-8.0549975,0.00013006,2]
[346774715,1735277432255,-150.17,0.00013006,2]
[346774717,1735277432264,-150.53,0.00013006,2]
[346774719,1735277432274,-151.3,0.00013006,2]
[346774721,1735277432284,-128.5050025,0.00013006,2]
[346774723,1735277432295,-21.7349975,0.00013006,2]
[346774725,1735277432305,-152.18,0.00013006,2]
[346774727,1735277432314,-150.89,0.00013006,2]
[346774729,1735277432324,-150.99,0.00013006,2]
[346774731,1735277432333,-151.19,0.00013006,2]
[346774733,1735277432342,-151.17,0.00013006,2]
[346774734,1735277432353,-151.09,0.00013006,2]
[346774735,1735277432363,-150.48,0.00013006,2]
[346774736,1735277432372,-447.92,0.00013006,2]
[346774737,1735277432382,-20.55205915,0.00013037,2]
[346774738,1735277432393,-1036.44794085,0.00013037,2]
[346774739,1735277432403,-252.55205915,0.00013068,2]
[346774740,1735277432420,-1024.99289706,0.00013068,2]
[346774741,1735277432432,-451.72001,0.00013068,2]
[346774742,1735277432443,-543.31503379,0.00013068,2]
[346774743,1735277432452,-74.9642598,0.00013068,2]
[346774744,1735277432474,-342.31320109,0.00013068,2]
[346774745,1735277432491,-1855.30253911,0.00013068,2]
[346774746,1735277432501,-1887.03,0.00013068,2]
[346774747,1735277432511,-1530.56,0.00013068,2]
[346774748,1735277432521,-675.3,0.00013068,2]
[346774749,1735277432530,-2012.25,0.00013068,2]
[346774750,1735277432540,-3309.38,0.00013068,2]
[346774751,1735277432549,-500.0,0.00013068,2]
[346774752,1735277432559,-880.47,0.00013068,2]
[346774753,1735277432568,-3487.3,0.00013068,2]
[346774754,1735277432577,-500.0,0.00013068,2]
[346774755,1735277432587,-1494.43,0.00013068,2]
[346774756,1735277432597,-4918.98,0.00013068,2]
[346774757,1735277432606,-4904.11,0.00013068,2]
[346774758,1735277432615,-2417.39,0.00013068,2]
[346774759,1735277432625,-4271.08,0.00013068,2]
[346774760,1735277432635,-2694.4,0.00013068,2]
[346774761,1735277432644,-1581.1,0.00013068,2]
[346774762,1735277432655,-676.27,0.00013068,2]
[346774763,1735277432664,-2902.48,0.00013068,2]
[346774764,1735277432673,-2188.32,0.00013068,2]
[346774765,1735277432683,-4849.81,0.00013068,2]
[346774766,1735277432692,-1704.4,0.00013068,2]
[346774767,1735277432701,-1047.5,0.00013068,2]
[346774768,1735277432710,-5166.99,0.00013068,2]
[346774769,1735277432720,-11272.39,0.00013068,2]
[346774770,1735277432729,-3445.1,0.00013068,2]
[346774771,1735277432738,-5089.13,0.00013068,2]
[346774772,1735277432747,-7154.94,0.00013068,2]
[346774773,1735277432756,-7591.85,0.00013068,2]
[346774774,1735277432766,-2253.22,0.00013068,2]
[346774775,1735277432776,-1641.65,0.00013068,2]
[346774776,1735277432785,-500.0,0.00013068,2]
[346774777,1735277432794,-6402.53,0.00013068,2]
[346774778,1735277432804,-2831.26,0.00013068,2]
[346774779,1735277432813,-500.0,0.00013068,2]
[346774780,1735277432823,-500.0,0.00013068,2]
[346774781,1735277432832,-2213.66,0.00013068,2]
[346774782,1735277432843,-1371.68,0.00013068,2]
[346774783,1735277432852,-740.41,0.00013068,2]
[346774784,1735277432862,-500.0,0.00013068,2]
[346774785,1735277432871,-500.0,0.00013068,2]
[346774786,1735277432880,-500.0,0.00013068,2]
[346774787,1735277432890,-590.3,0.00013068,2]
[346774788,1735277432899,-500.0,0.00013069,2]
[346774789,1735277432908,-809.07,0.00013069,2]
[346774790,1735277432918,-500.0,0.00013069,2]
[346774791,1735277432928,-485.76430403,0.00013069,2]
[346774792,1735277432937,-600.78,0.00013069,2]
[346774793,1735277432947,-500.0,0.00013069,2]
[346774794,1735277432956,-695.27,0.00013069,2]
[346774795,1735277432965,-500.0,0.00013069,2]
[346774796,1735277432974,-527.84,0.00013069,2]
[346774797,1735277432984,-500.0,0.00013069,2]
[346774798,1735277432993,-517.59091927,0.00013069,2]
[346774799,1735277433003,-729.65,0.00013069,2]
[346774800,1735277433012,-500.0,0.00013069,2]
[346774801,1735277433022,-703.72,0.00013069,2]
[346774802,1735277433032,-500.0,0.00013069,2]
[346774803,1735277433042,-640.75,0.00013069,2]
[346774804,1735277433052,-768.38,0.00013069,2]
[346774805,1735277433062,-500.0,0.00013069,2]
[346774806,1735277433072,-792.81,0.00013069,2]
[346774807,1735277433082,-500.0,0.00013069,2]
[346774808,1735277433092,-500.0,0.00013069,2]
[346774809,1735277433104,-500.0,0.00013069,2]
[346774810,1735277433115,-500.0,0.00013069,2]
[346774811,1735277433125,-500.0,0.00013069,2]
[346774812,1735277433135,-500.0,0.00013069,2]
[346774813,1735277433145,-500.0,0.00013069,2]
[346774814,1735277433154,-500.0,0.00013069,2]
[346774815,1735277433164,-433.62455429,0.00013069,2]
[346774816,1735277433174,-500.0,0.00013069,2]
[346774817,1735277433184,-500.0,0.00013069,2]
[346774818,1735277433193,-500.0,0.00013069,2]
[346774819,1735277433204,-500.0,0.00013069,2]
[346774820,1735277433214,-546.37,0.00013069,2]
[346774821,1735277433224,-804.5,0.00013069,2]
[346774822,1735277433234,-500.0,0.00013069,2]
[346774823,1735277433244,-500.0,0.00013069,2]
[346774824,1735277433254,-500.0,0.00013069,2]
[346774825,1735277433264,-500.0,0.00013069,2]
[346774826,1735277433274,-500.0,0.00013069,2]
[346774827,1735277433284,-500.0,0.00013069,2]
[346774828,1735277433294,-897.91,0.00013069,2]
[346774829,1735277433303,-500.0,0.00013069,2]
[346774830,1735277433313,-500.0,0.00013069,2]
[346774831,1735277433322,-830.25,0.00013069,2]
[346774832,1735277433333,-500.0,0.00013069,2]
[346774833,1735277433344,-500.0,0.00013069,2]
[346774834,1735277433355,-500.0,0.00013069,2]
[346774835,1735277433365,-500.0,0.00013069,2]
[346774836,1735277433374,-596.5,0.00013069,2]
[346774837,1735277433384,-500.0,0.00013069,2]
[346774838,1735277433394,-500.0,0.00013069,2]
[346774839,1735277433403,-816.34,0.00013069,2]
[346774840,1735277433413,-500.0,0.00013069,2]
[346774841,1735277433422,-2026.62,0.00013069,2]
[346774842,1735277433432,-500.0,0.00013069,2]
[346774843,1735277433442,-948.32,0.00013069,2]
[346774844,1735277433451,-1778.45,0.00013069,2]
[346774845,1735277433461,-500.0,0.00013069,2]
[346774846,1735277433475,-851.03,0.00013069,2]
[346774847,1735277433484,-175.60298357,0.00013069,2]
[346774848,1735277433494,-500.0,0.00013069,2]
[346774849,1735277433503,-500.0,0.00013069,2]
[346774850,1735277433513,-500.0,0.00013069,2]
[346774851,1735277433522,-500.0,0.00013069,2]
[346774852,1735277433531,-500.0,0.00013069,2]
[346774853,1735277433541,-727.32,0.00013069,2]
[346774854,1735277433550,-1326.08,0.00013069,2]
[346774855,1735277433559,-500.0,0.00013069,2]
[346774856,1735277433568,-655.81,0.00013069,2]
[346774857,1735277433577,-500.0,0.00013069,2]
[346774858,1735277433587,-514.11837027,0.00013069,2]
[346774859,1735277433596,-500.0,0.00013069,2]
[346774860,1735277433607,-500.0,0.00013069,2]
[346774861,1735277433617,-500.0,0.00013069,2]
[346774862,1735277433627,-2015.2,0.00013069,2]
[346774863,1735277433636,-504.52,0.00013069,2]
[346774864,1735277433645,-881.98,0.00013069,2]
[346774865,1735277433655,-617.0,0.00013069,2]
[346774866,1735277433664,-693.21,0.00013069,2]
[346774867,1735277433674,-1349.72,0.00013069,2]
[346774868,1735277433683,-516.53,0.00013069,2]
[346774869,1735277433694,-500.0,0.00013069,2]
[346774870,1735277433704,-995.9,0.00013069,2]
[346774871,1735277433713,-761.33,0.00013069,2]
[346774872,1735277433723,-595.0,0.00013069,2]
[346774873,1735277433732,-500.0,0.00013069,2]
[346774874,1735277433742,-617.14,0.00013069,2]
[346774875,1735277433751,-500.0,0.00013069,2]
[346774876,1735277433761,-881.32,0.00013069,2]
[346774877,1735277433772,-762.8,0.00013069,2]
[346774878,1735277433782,-500.0,0.00013069,2]
[346774879,1735277433791,-500.0,0.00013069,2]
[346774880,1735277433801,-994.439116,0.00013069,2]
[346774881,1735277433811,-500.0,0.00013069,2]
[346774882,1735277433821,-855.69,0.00013069,2]
[346774883,1735277433831,-500.0,0.00013069,2]
[346774884,1735277433840,-500.0,0.00013069,2]
[346774885,1735277433851,-500.0,0.00013069,2]
[346774886,1735277433861,-500.0,0.00013069,2]
[346774887,1735277433870,-805.09,0.00013069,2]
[346774888,1735277433879,-825.41,0.00013069,2]
[346774889,1735277433889,-2708.22,0.00013069,2]
[346774890,1735277433898,-500.0,0.00013069,2]
[346774891,1735277433907,-500.0,0.00013069,2]
[346774892,1735277433917,-744.06,0.00013069,2]
[346774893,1735277433927,-1466.56,0.00013069,2]
[346774894,1735277433937,-842.61,0.00013069,2]
[346774895,1735277433946,-500.0,0.00013069,2]
[346774896,1735277433956,-500.0,0.00013069,2]
[346774897,1735277433965,-1088.8,0.00013069,2]
[346774898,1735277433975,-1182.909902,0.00013069,2]
[346774899,1735277433984,-2945.68,0.00013069,2]
[346774900,1735277433995,-1079.76,0.00013069,2]
[346774901,1735277434005,-500.0,0.00013069,2]
[346774902,1735277434015,-377.67731146,0.00013069,2]
[346774903,1735277434030,-297.95268854,0.00013069,2]
[346774904,1735277434040,-503.62,0.00013069,2]
[346774905,1735277434051,-670.2,0.00013069,2]
[346774906,1735277434060,-500.0,0.00013069,2]
[346774907,1735277434070,-500.0,0.00013069,2]
[346774908,1735277434080,-500.0,0.00013069,2]
[346774909,1735277434089,-510.14,0.00013069,2]
[346774910,1735277434099,-500.0,0.00013069,2]
[346774911,1735277434109,-500.0,0.00013069,2]
[346774912,1735277434119,-382.12101186,0.00013069,2]
[346774913,1735277434787,750.16,0.00011973,2]
[346774914,1735277434947,750.16,0.00012247,2]
[346774915,1735277435041,750.16,0.00012521,2]
[346774916,1735277435291,750.16,0.00012795,2]
[346774917,1735277436148,6275.668,0.00012251,2]
[346774918,1735277436384,1267.6121271,0.00012997,2]
[346774924,1735277437913,-317.67784069,0.00013068,2]
[346774946,1735277438377,871.53,0.00011973,2]
[346774964,1735277438639,871.53,0.00012247,2]
[346774991,1735277438877,871.53,0.00012521,2]
[346775021,1735277439149,871.53,0.00012795,2]
[346775092,1735277439790,596.38,0.00011973,2]
[346775112,1735277439973,974.22,0.00011973,2]
[346775120,1735277440037,596.38,0.00012247,2]
[346775123,1735277440050,-390.71099736,0.00013068,2]
[346775142,1735277440225,974.22,0.00012247,2]
[346775150,1735277440291,596.38,0.00012521,2]
[346775168,1735277440532,596.38,0.00012795,2]
[346775174,1735277440582,974.22,0.00012521,2]
[346775197,1735277440795,974.22,0.00012795,2]
[346775235,1735277441441,1171.0,0.00012251,2]
[346775236,1735277441729,1565.76,0.00011976,2]
[346775239,1735277443114,1565.76,0.0001225,2]
[346775241,1735277443868,1565.76,0.00012524,2]
[346775242,1735277444383,1565.76,0.00012798,2]
[346775245,1735277446010,-151.1,0.00013068,2]
[346775246,1735277446019,-330.3109456,0.00013068,2]
[346775247,1735277446070,-565.71021635,0.00013068,2]
[346775248,1735277446080,-644.70682548,0.00013068,2]
[346775249,1735277446089,-647.17,0.00013068,2]
[346775250,1735277446099,-447.29295817,0.00013068,2]
[346775255,1735277447665,635.0,0.00012258,2]
[346775256,1735277447921,672.85,0.00011973,2]
[346775257,1735277448186,672.85,0.00012247,2]
[346775258,1735277448435,672.85,0.00012521,2]
[346775259,1735277448677,500.0,0.00011973,2]
[346775260,1735277448734,672.85,0.00012795,2]
[346775261,1735277448916,500.0,0.00012247,2]
[346775262,1735277449131,151.15871,0.0001222,2]
[346775263,1735277449243,500.0,0.00012521,2]
[346775264,1735277449523,500.0,0.00012795,2]
[346775265,1735277450583,1397.22,0.00011974,2]
[346775266,1735277451330,1397.22,0.00012248,2]
[346775267,1735277451786,500.0,0.00011973,2]
[346775268,1735277452050,500.0,0.00012247,2]
[346775269,1735277452291,500.0,0.00012521,2]
[346775270,1735277452575,500.0,0.00012795,2]
[346775271,1735277452806,1397.22,0.00012522,2]
[346775272,1735277453477,1397.22,0.00012796,2]
[346775273,1735277453693,500.0,0.00011973,2]
[346775274,1735277453961,1102.0,0.00012258,2]
[346775275,1735277454212,1601.96,0.00011973,2]
[346775276,1735277454447,1601.96,0.00012247,2]
[346775277,1735277454957,500.0,0.00012247,2]
[346775278,1735277455051,1601.96,0.00012521,2]
[346775279,1735277455340,1601.96,0.00012795,2]
[346775280,1735277455923,935.06,0.00011973,2]
[346775281,1735277456532,935.06,0.00012247,2]
[346775282,1735277456605,500.0,0.00012521,2]
[346775283,1735277456888,935.06,0.00012521,2]
[346775284,1735277457146,935.06,0.00012795,2]
[346775285,1735277458407,500.0,0.00012795,2]
[346775286,1735277461148,1274.89,0.00011973,2]
[346775287,1735277461420,1274.89,0.00012247,2]
[346775288,1735277461654,1274.89,0.00012521,2]
[346775289,1735277461909,1274.89,0.00012795,2]
[346775290,1735277462637,891.9,0.00011973,2]
[346775291,1735277462963,891.9,0.00012247,2]
[346775292,1735277463252,891.9,0.00012521,2]
[346775293,1735277464056,891.9,0.00012795,2]
[346775294,1735277464745,826.31,0.00011976,2]
[346775295,1735277465751,826.31,0.0001225,2]
[346775296,1735277466919,633.0,0.00012258,2]
[346775297,1735277467035,826.31,0.00012524,2]
[346775298,1735277467258,6549.15,0.00011975,2]
[346775299,1735277467307,6279.18,0.00011973,2]
[346775300,1735277467696,826.31,0.00012798,2]
[346775301,1735277467896,6279.18,0.00012247,2]
[346775302,1735277467944,6549.15,0.00012249,2]
[346775303,1735277468922,6279.18,0.00012521,2]
[346775304,1735277468983,6549.15,0.00012523,2]
[346775305,1735277469624,6549.15,0.00012797,2]
[346775306,1735277469860,6279.18,0.00012795,2]
[346775307,1735277470486,950.61,0.00011973,2]
[346775308,1735277470760,950.61,0.00012247,2]
[346775309,1735277471046,950.61,0.00012521,2]
[346775310,1735277471343,950.61,0.00012795,2]
[346775311,1735277472489,150.0,0.00012258,2]
[346775312,1735277473143,500.0,0.00011973,2]
[346775313,1735277473663,500.0,0.00012247,2]
[346775314,1735277473844,500.0,0.00012521,2]
[346775315,1735277473934,500.0,0.00012795,2]
[346775316,1735277475878,500.0,0.00011973,2]
[346775317,1735277476175,500.0,0.00012247,2]
[346775318,1735277476437,500.0,0.00011973,2]
[346775319,1735277476545,500.0,0.00012521,2]
[346775320,1735277476664,2326.04,0.00011974,2]
[346775321,1735277476713,500.0,0.00011973,2]
[346775322,1735277476760,500.0,0.00012247,2]
[346775323,1735277476817,500.0,0.00012795,2]
[346775324,1735277476972,500.0,0.00012247,2]
[346775325,1735277477023,500.0,0.00012521,2]
[346775326,1735277477187,500.0,0.00012521,2]
[346775327,1735277477260,500.0,0.00012795,2]
[346775328,1735277477445,500.0,0.00012795,2]
[346775329,1735277477656,2326.04,0.00012248,2]
[346775330,1735277477867,565.0,0.00012258,2]
[346775331,1735277478203,2326.04,0.00012522,2]
[346775332,1735277478607,2326.04,0.00012796,2]
[346775333,1735277479242,834.74,0.00011973,2]
[346775334,1735277479509,834.74,0.00012247,2]
[346775335,1735277479887,834.74,0.00012521,2]
[346775336,1735277480081,2419.28,0.00011974,2]
[346775337,1735277480155,834.74,0.00012795,2]
[346775338,1735277480560,2419.28,0.00012248,2]
[346775339,1735277481738,2419.28,0.00012522,2]
[346775340,1735277482447,2419.28,0.00012796,2]
[346775341,1735277482844,3961.41,0.00011976,2]
[346775342,1735277483460,3961.41,0.0001225,2]
[346775343,1735277484214,3961.41,0.00012524,2]
[346775344,1735277484710,1973.81,0.00011974,2]
[346775345,1735277484778,3961.41,0.00012798,2]
[346775346,1735277485078,1973.81,0.00012248,2]
[346775347,1735277485518,500.0,0.00011973,2]
[346775348,1735277485763,500.0,0.00012247,2]
[346775349,1735277486097,500.0,0.00012521,2]
[346775350,1735277486309,1973.81,0.00012522,2]
[346775351,1735277486358,500.0,0.00012795,2]
[346775352,1735277486847,1973.81,0.00012796,2]
[346775353,1735277487699,1183.23,0.00011973,2]
[346775354,1735277487968,1183.23,0.00012247,2]
[346775355,1735277488214,1183.23,0.00012521,2]
[346775356,1735277488464,1183.23,0.00012795,2]
[346775357,1735277488863,526.09,0.00011973,2]
[346775358,1735277489124,526.09,0.00012247,2]
[346775359,1735277489373,526.09,0.00012521,2]
[346775360,1735277489640,526.09,0.00012795,2]
[346775361,1735277492935,1962.6,0.00011976,2]
[346775362,1735277493349,500.0,0.00011973,2]
[346775363,1735277493555,1962.6,0.0001225,2]
[346775364,1735277493623,500.0,0.00012247,2]
[346775365,1735277493859,500.0,0.00012521,2]
[346775366,1735277494165,500.0,0.00012795,2]
[346775367,1735277494435,1962.6,0.00012524,2]
[346775368,1735277495642,1521.4,0.00011975,2]
[346775369,1735277495759,1962.6,0.00012798,2]
[346775370,1735277496071,3717.72,0.00011973,2]
[346775371,1735277496277,1521.4,0.00012249,2]
[346775372,1735277496717,3717.72,0.00012247,2]
[346775373,1735277496864,1521.4,0.00012523,2]
[346775374,1735277497093,1900.0,0.00012258,2]
[346775375,1735277497493,1521.4,0.00012797,2]
[346775376,1735277497544,3717.72,0.00012521,2]
[346775377,1735277498307,500.0,0.00011973,2]
[346775378,1735277498381,3717.72,0.00012795,2]
[346775379,1735277498572,500.0,0.00012247,2]
[346775380,1735277498627,500.0,0.00011973,2]
[346775381,1735277498810,629.70839797,0.00012521,2]
[346775382,1735277498894,500.0,0.00012247,2]
[346775383,1735277499357,500.0,0.00012521,2]
[346775384,1735277500028,500.0,0.00012795,2]
[346775385,1735277500115,500.0,0.00011973,2]
[346775386,1735277500187,500.0,0.00012247,2]
[346775387,1735277500461,500.0,0.00012521,2]
[346775388,1735277500745,500.0,0.00012795,2]
[346775389,1735277501526,901.94,0.00011973,2]
[346775390,1735277501759,901.94,0.00012247,2]
[346775391,1735277502011,901.94,0.00012521,2]
[346775392,1735277502259,901.94,0.00012795,2]
[346775393,1735277503987,1014.11,0.00011973,2]
[346775394,1735277504241,1014.11,0.00012247,2]
[346775395,1735277504539,1014.11,0.00012521,2]
[346775396,1735277504613,153.0,0.00012253,2]
[346775397,1735277504848,1014.11,0.00012795,2]
[346775398,1735277504967,153.0,0.00012253,2]
[346775399,1735277505017,500.0,0.00011973,2]
[346775400,1735277505190,153.0,0.00012253,2]
[346775401,1735277505595,153.0,0.00012253,2]
[346775402,1735277505657,500.0,0.00012247,2]
[346775403,1735277505854,153.0,0.00012253,2]
[346775404,1735277505901,500.0,0.00012521,2]
[346775405,1735277505970,1830.29,0.00011973,2]
[346775406,1735277506018,153.0,0.00012253,2]
[346775407,1735277506073,500.0,0.00012795,2]
[346775408,1735277506644,1830.29,0.00012247,2]
[346775409,1735277507328,1830.29,0.00012521,2]
[346775410,1735277507920,812.9144,0.00012906,2]
[346775411,1735277508059,1830.29,0.00012795,2]
[346775412,1735277509118,506.32,0.00011974,2]
[346775413,1735277509659,506.32,0.00012248,2]
[346775414,1735277510207,506.32,0.00012522,2]
[346775415,1735277510514,1159.05,0.00011973,2]
[346775416,1735277510770,500.0,0.00011973,2]
[346775417,1735277510819,1159.05,0.00012247,2]
[346775418,1735277510882,506.32,0.00012796,2]
[346775419,1735277511009,500.0,0.00012247,2]
[346775420,1735277511109,1159.05,0.00012521,2]
[346775421,1735277511255,500.0,0.00012521,2]
[346775422,1735277511665,500.0,0.00012795,2]
[346775423,1735277511715,1159.05,0.00012795,2]
[346775424,1735277512633,500.0,0.00011973,2]
[346775425,1735277512823,500.0,0.00012247,2]
[346775426,1735277513073,500.0,0.00012521,2]
[346775427,1735277513335,500.0,0.00012795,2]
[346775428,1735277515512,153.0,0.00012252,2]
[346775429,1735277515939,153.0,0.00012252,2]
[346775430,1735277516003,819.0,0.00012258,2]
[346775431,1735277516059,153.0,0.00012252,2]
[346775432,1735277516149,153.0,0.00012252,2]
[346775433,1735277516370,153.0,0.00012252,2]
[346775434,1735277516700,1542.15,0.00011973,2]
[346775435,1735277516871,500.0,0.00011973,2]
[346775436,1735277516925,3666.1,0.00011974,2]
[346775437,1735277516984,1542.15,0.00012247,2]
[346775438,1735277517081,500.0,0.00012247,2]
[346775439,1735277517201,1542.15,0.00012521,2]
[346775440,1735277517330,500.0,0.00012521,2]
[346775441,1735277517435,3666.1,0.00012248,2]
[346775442,1735277517489,1542.15,0.00012795,2]
[346775443,1735277517569,500.0,0.00012795,2]
[346775444,1735277518498,3666.1,0.00012522,2]
[346775445,1735277519201,3666.1,0.00012796,2]
[346775446,1735277520476,500.0,0.00011973,2]
[346775447,1735277520755,500.0,0.00012247,2]
[346775448,1735277520974,501.628,0.0001242,2]
[346775449,1735277521165,500.0,0.00012521,2]
[346775450,1735277521360,645.49,0.00011973,2]
[346775451,1735277521431,500.0,0.00012795,2]
[346775452,1735277521610,645.49,0.00012247,2]
[346775453,1735277521729,2093.63,0.00011976,2]
[346775454,1735277521899,645.49,0.00012521,2]
[346775455,1735277522148,645.49,0.00012795,2]
[346775456,1735277522496,2093.63,0.0001225,2]
[346775457,1735277523084,2093.63,0.00012524,2]
[346775458,1735277524151,2093.63,0.00012798,2]
[346775459,1735277524758,500.0,0.00011973,2]
[346775460,1735277525075,500.0,0.00012247,2]
[346775461,1735277525218,881.7,0.00011973,2]
[346775462,1735277525371,500.0,0.00012521,2]
[346775463,1735277525483,881.7,0.00012247,2]
[346775464,1735277525736,500.0,0.00012795,2]
[346775465,1735277525794,881.7,0.00012521,2]
[346775466,1735277526283,881.7,0.00012795,2]
[346775467,1735277526337,14820.52,0.00011973,2]
[346775468,1735277526565,14820.52,0.00012247,2]
[346775469,1735277527097,14820.52,0.00012521,2]
[346775470,1735277527611,14820.52,0.00012795,2]
[346775471,1735277528770,3772.0,0.00012258,2]
[346775472,1735277532055,688.59,0.00011976,2]
[346775473,1735277532571,688.59,0.0001225,2]
[346775474,1735277532675,500.0,0.00011973,2]
[346775475,1735277533004,500.0,0.00012247,2]
[346775476,1735277533207,688.59,0.00012524,2]
[346775477,1735277533273,500.0,0.00012521,2]
[346775478,1735277533511,500.0,0.00012795,2]
[346775479,1735277533627,2833.65,0.00011973,2]
[346775480,1735277533785,688.59,0.00012798,2]
[346775481,1735277533981,922.0,0.00012258,2]
[346775482,1735277534101,2833.65,0.00012247,2]
[346775483,1735277535151,2833.65,0.00012521,2]
[346775484,1735277535852,2833.65,0.00012795,2]
[346775485,1735277536035,2470.77,0.00011974,2]
[346775486,1735277539102,500.0,0.00011973,2]
[346775487,1735277539368,500.0,0.00012247,2]
[346775488,1735277539598,500.0,0.00011973,2]
[346775489,1735277539642,500.0,0.00012521,2]
[346775490,1735277539696,1256.0,0.00012258,2]
[346775491,1735277539859,500.0,0.00012247,2]
[346775492,1735277539904,500.0,0.00012795,2]
[346775493,1735277539952,2470.77,0.00012248,2]